lending/lending_fUSD_20251022
["ID","MTS","AMOUNT","RATE_DAILY","PERIOD"]
[392108927,1761166242085,-151.0,0.00044947,120]
[392108929,1761166242095,-331.344824,0.00044947,120]
[392108931,1761166242105,-331.344824,0.00044947,120]
[392108933,1761166242114,-331.344824,0.00044947,120]
[392108936,1761166242124,-485.428792,0.00044947,120]
[392108938,1761166242134,-331.344824,0.00044947,120]
[392108940,1761166242144,-6343.1534723,0.0004495,3]
[392108942,1761166242154,-47390.6162619,0.00044957,2]
[392108945,1761166242165,-22868.0274873,0.00044957,2]
[392108948,1761166242175,-151.0,0.00044957,120]
[392108950,1761166242184,-151.0,0.00044957,120]
[392108951,1761166242194,-151.0,0.00044957,120]
[392108954,1761166242206,-151.0,0.00044957,120]
[392108956,1761166242215,-151.0,0.00044957,120]
[392108958,1761166242225,-151.0,0.00044957,120]
[392108960,1761166242234,-151.0,0.00044957,120]
[392108962,1761166242244,-155.843139,0.00044957,120]
[392108964,1761166242253,-151.0,0.00044957,120]
[392108965,1761166242263,-154.336405,0.00044957,120]
[392108967,1761166242273,-434.680463,0.00044957,120]
[392108969,1761166242282,-151.0,0.00044957,120]
[392108971,1761166242292,-434.680463,0.00044957,120]
[392108974,1761166242302,-151.0,0.00044957,120]
[392108976,1761166242311,-434.680463,0.00044957,120]
[392108978,1761166242320,-434.680463,0.00044957,120]
[392108980,1761166242330,-151.0,0.00044957,120]
[392108982,1761166242342,-151.0,0.00044957,120]
[392108984,1761166242363,-272.330584,0.00044957,120]
[392108986,1761166242383,-151.0,0.00044957,120]
[392108988,1761166242396,-151.0,0.00044957,120]
[392108990,1761166242405,-151.0,0.00044957,120]
[392108993,1761166242416,-151.0,0.00044957,120]
[392108997,1761166242427,-356.994515,0.00044957,120]
[392108998,1761166242439,-151.0,0.00044957,30]
[392109001,1761166242449,-151.0,0.00044957,120]
[392109003,1761166242459,-356.994515,0.00044957,120]
[392109005,1761166242469,-151.0,0.00044957,120]
[392109006,1761166242479,-151.0,0.00044957,120]
[392109009,1761166242490,-356.994515,0.00044957,120]
[392109011,1761166242502,-356.994515,0.00044957,120]
[392109012,1761166242511,-151.0,0.00044957,120]
[392109015,1761166242520,-151.0,0.00044957,120]
[392109016,1761166242530,-151.0,0.00044957,120]
[392109018,1761166242540,-151.0,0.00044957,120]
[392109020,1761166242549,-151.0,0.00044957,120]
[392109022,1761166242560,-458.36691,0.0004496,25]
[392109024,1761166242570,-5529.3390572,0.00044963,3]
[392109027,1761166242579,-6343.1534723,0.00044969,3]
[392109029,1761166242589,-5529.3390572,0.00044969,3]
[392109031,1761166242599,-537.59633374,0.0004497,120]
[392109032,1761166242609,-500.0,0.0004497,120]
[392109034,1761166242620,-6343.1534723,0.0004497,3]
[392109036,1761166242631,-5529.3390572,0.0004497,3]
[392109038,1761166242643,-151.0,0.0004497,120]
[392109041,1761166242652,-151.0,0.0004497,120]
[392109042,1761166242662,-151.0,0.0004497,120]
[392109044,1761166242671,-151.0,0.0004497,120]
[392109046,1761166242681,-232.913323,0.0004497,120]
[392109049,1761166242691,-151.0,0.0004497,120]
[392109051,1761166242700,-151.0,0.0004497,14]
[392109053,1761166242710,-181.309918,0.0004497,120]
[392109055,1761166242720,-151.0,0.0004497,120]
[392109056,1761166242730,-151.0,0.0004497,120]
[392109058,1761166242741,-181.309918,0.0004497,120]
[392109060,1761166242751,-181.309918,0.0004497,120]
[392109063,1761166242761,-151.0,0.0004497,120]
[392109065,1761166242770,-181.309918,0.0004497,120]
[392109066,1761166242782,-151.0,0.0004497,120]
[392109069,1761166242793,-151.0,0.0004497,120]
[392109071,1761166242805,-151.0,0.0004497,120]
[392109072,1761166242815,-151.0,0.0004497,120]
[392109075,1761166242825,-151.0,0.0004497,120]
[392109077,1761166242836,-151.0,0.0004497,90]
[392109079,1761166242849,-251.300155,0.0004497,90]
[392109080,1761166242859,-151.0,0.0004497,120]
[392109082,1761166242868,-151.0,0.0004497,120]
[392109085,1761166242878,-151.0,0.0004497,120]
[392109087,1761166242890,-151.0,0.0004497,120]
[392109089,1761166242900,-151.0,0.0004497,120]
[392109091,1761166242910,-12686.3069446,0.0004497,3]
[392109092,1761166242920,-11058.6781144,0.0004497,3]
[392109095,1761166242930,-500.0,0.00044973,10]
[392109096,1761166242940,-504.58952718,0.00044973,10]
[392109099,1761166242949,-500.0,0.00044973,10]
[392109100,1761166242959,-500.0,0.00044978,120]
[392109102,1761166242968,-591.59242,0.00044978,120]
[392109105,1761166242977,-500.0,0.00044978,2]
[392109107,1761166242986,-500.0,0.00044978,120]
[392109109,1761166242996,-6343.1534723,0.00044979,3]
[392109111,1761166243005,-5529.3390572,0.00044979,3]
[392109113,1761166243016,-151.0,0.00044979,120]
[392109115,1761166243026,-151.0,0.00044979,120]
[392109117,1761166243036,-151.0,0.00044979,120]
[392109118,1761166243046,-151.0,0.00044979,120]
[392109120,1761166243056,-151.0,0.00044979,120]
[392109122,1761166243065,-151.0,0.00044979,120]
[392109124,1761166243074,-151.0,0.00044979,120]
[392109127,1761166243084,-152.135688,0.00044979,120]
[392109128,1761166243093,-151.0,0.00044979,120]
[392109130,1761166243103,-331.344824,0.00044979,120]
[392109132,1761166243112,-331.344824,0.00044979,120]
[392109134,1761166243121,-331.344824,0.00044979,120]
[392109137,1761166243131,-485.428792,0.00044979,120]
[392109139,1761166243140,-6343.1534723,0.00044979,3]
[392109141,1761166243149,-11058.6781144,0.00044979,3]
[392109143,1761166243159,-6343.1534723,0.0004498,3]
[392109145,1761166243169,-500.0,0.0004498,120]
[392109147,1761166243178,-151.0,0.0004498,120]
[392109148,1761166243187,-151.0,0.0004498,120]
[392109151,1761166243197,-151.0,0.0004498,120]
[392109152,1761166243206,-151.0,0.0004498,120]
[392109155,1761166243216,-151.0,0.0004498,120]
[392109156,1761166243225,-151.0,0.0004498,120]
[392109159,1761166243234,-151.0,0.0004498,120]
[392109161,1761166243244,-151.0,0.0004498,120]
[392109162,1761166243253,-152.690523,0.0004498,120]
[392109165,1761166243263,-151.0,0.0004498,120]
[392109167,1761166243272,-151.0,0.0004498,120]
[392109169,1761166243282,-151.0,0.0004498,120]
[392109171,1761166243291,-151.0,0.0004498,60]
[392109172,1761166243300,-151.0,0.0004498,30]
[392109174,1761166243309,-151.0,0.0004498,120]
[392109176,1761166243318,-151.0,0.0004498,120]
[392109179,1761166243328,-151.0,0.0004498,120]
[392109181,1761166243337,-151.0,0.0004498,120]
[392109182,1761166243346,-151.0,0.0004498,30]
[392109183,1761166243356,-151.0,0.0004498,120]
[392109184,1761166243365,-151.0,0.0004498,120]
[392109185,1761166243374,-151.0,0.0004498,120]
[392109186,1761166243383,-151.927847,0.0004498,120]
[392109187,1761166243392,-151.0,0.0004498,120]
[392109188,1761166243400,-151.0,0.0004498,15]
[392109189,1761166243409,-151.0,0.0004498,120]
[392109190,1761166243418,-151.0,0.0004498,15]
[392109192,1761166243427,-229.0586,0.0004498,120]
[392109194,1761166243437,-151.214176,0.0004498,120]
[392109196,1761166243446,-151.0,0.0004498,120]
[392109198,1761166243456,-151.0,0.0004498,120]
[392109200,1761166243465,-151.0,0.0004498,120]
[392109202,1761166243474,-151.0,0.0004498,120]
[392109204,1761166243484,-151.0,0.0004498,120]
[392109206,1761166243493,-151.0,0.0004498,120]
[392109208,1761166243502,-151.0,0.0004498,120]
[392109210,1761166243511,-151.0,0.0004498,120]
[392109212,1761166243521,-151.0,0.0004498,120]
[392109214,1761166243531,-151.0,0.0004498,120]
[392109217,1761166243540,-151.0,0.0004498,120]
[392109219,1761166243550,-151.0,0.0004498,120]
[392109221,1761166243559,-151.0,0.0004498,120]
[392109223,1761166243569,-151.0,0.0004498,120]
[392109225,1761166243578,-151.0,0.0004498,120]
[392109226,1761166243587,-151.0,0.0004498,120]
[392109229,1761166243597,-593.14204,0.0004498,30]
[392109231,1761166243606,-151.0,0.0004498,120]
[392109233,1761166243618,-593.14204,0.0004498,30]
[392109235,1761166243627,-151.0,0.0004498,120]
[392109237,1761166243636,-152.499995,0.0004498,120]
[392109239,1761166243646,-593.14204,0.0004498,30]
[392109241,1761166243655,-152.36362,0.0004498,120]
[392109243,1761166243664,-593.14204,0.0004498,30]
[392109245,1761166243674,-155.712478,0.0004498,120]
[392109246,1761166243683,-151.0,0.0004498,120]
[392109249,1761166243694,-151.0,0.0004498,120]
[392109251,1761166243703,-151.0,0.0004498,120]
[392109252,1761166243713,-12686.3069446,0.0004498,3]
[392109254,1761166243723,-16588.0171716,0.0004498,3]
[392109256,1761166243732,-22117.3562288,0.00044986,3]
[392109258,1761166243742,-33176.0343432,0.00044989,3]
[392109261,1761166243752,-504.09132802,0.00044989,120]
[392109263,1761166243761,-500.0,0.00044989,120]
[392109264,1761166243770,-151.0,0.00044989,120]
[392109267,1761166243780,-189.968567,0.00044989,120]
[392109269,1761166243789,-151.0,0.00044989,120]
[392109271,1761166243799,-151.0,0.00044989,120]
[392109273,1761166243808,-151.0,0.00044989,120]
[392109275,1761166243816,-151.0,0.00044989,120]
[392109277,1761166243826,-1393.08,0.00044989,120]
[392109279,1761166243835,-594.66009382,0.00044989,120]
[392109281,1761166243848,-500.0,0.00044989,120]
[392109283,1761166243857,-500.0,0.00044989,120]
[392109285,1761166243867,-500.0,0.00044989,120]
[392109287,1761166243876,-38705.3734004,0.0004499,3]
[392109289,1761166243887,-448.91475957,0.0004499,7]
[392109291,1761166243896,-151.0,0.0004499,120]
[392109293,1761166243906,-151.91,0.0004499,120]
[392109295,1761166243916,-156.013839,0.0004499,120]
[392109297,1761166243925,-151.0,0.0004499,120]
[392109299,1761166243935,-151.0,0.0004499,120]
[392109301,1761166243945,-151.0,0.0004499,120]
[392109303,1761166243954,-151.0,0.0004499,120]
[392109305,1761166243963,-151.0,0.0004499,120]
[392109307,1761166243973,-154.387196,0.0004499,120]
[392109309,1761166243983,-151.0,0.0004499,120]
[392109311,1761166243992,-151.0,0.0004499,120]
[392109313,1761166244001,-151.0,0.0004499,120]
[392109315,1761166244011,-151.0,0.0004499,120]
[392109317,1761166244021,-151.0,0.0004499,120]
[392109319,1761166244030,-151.0,0.0004499,120]
[392109321,1761166244040,-158.287041,0.0004499,120]
[392109323,1761166244049,-151.0,0.0004499,120]
[392109325,1761166244059,-155.888549,0.0004499,120]
[392109327,1761166244068,-151.0,0.0004499,120]
[392109329,1761166244078,-270.070198,0.0004499,120]
[392109331,1761166244087,-151.0,0.0004499,120]
[392109333,1761166244097,-151.0,0.0004499,120]
[392109335,1761166244106,-151.0,0.0004499,120]
[392109337,1761166244115,-151.0,0.0004499,120]
[392109339,1761166244124,-151.0,0.0004499,120]
[392109341,1761166244133,-151.0,0.0004499,120]
[392109343,1761166244143,-151.0,0.0004499,120]
[392109345,1761166244153,-151.0,0.0004499,120]
[392109347,1761166244162,-151.0,0.0004499,120]
[392109349,1761166244171,-151.0,0.0004499,120]
[392109351,1761166244180,-151.0,0.0004499,120]
[392109353,1761166244190,-151.0,0.0004499,120]
[392109355,1761166244200,-151.0,0.0004499,120]
[392109357,1761166244210,-151.0,0.0004499,120]
[392109359,1761166244219,-151.0,0.0004499,120]
[392109361,1761166244229,-151.0,0.0004499,120]
[392109363,1761166244238,-151.0,0.0004499,120]
[392109365,1761166244247,-151.0,0.0004499,120]
[392109367,1761166244257,-151.0,0.0004499,120]
[392109369,1761166244266,-151.0,0.0004499,120]
[392109371,1761166244275,-151.0,0.0004499,120]
[392109373,1761166244284,-158.962634,0.0004499,120]
[392109375,1761166244293,-151.64545188,0.0004499,2]
[392109380,1761166244330,-259.97408529,0.0004499,2]
[392109382,1761166244339,-434.680463,0.0004499,120]
[392109384,1761166244348,-151.0,0.0004499,120]
[392109386,1761166244357,-434.680463,0.0004499,120]
[392109388,1761166244366,-434.680463,0.0004499,120]
[392109390,1761166244375,-434.680463,0.0004499,120]
[392109392,1761166244384,-151.0,0.0004499,120]
[392109394,1761166244393,-151.0,0.0004499,120]
[392109396,1761166244402,-151.0,0.0004499,120]
[392109398,1761166244411,-151.0,0.0004499,120]
[392109400,1761166244419,-356.994515,0.0004499,120]
[392109402,1761166244429,-151.0,0.0004499,30]
[392109404,1761166244438,-151.0,0.0004499,120]
[392109406,1761166244447,-356.994515,0.0004499,120]
[392109408,1761166244456,-151.0,0.0004499,120]
[392109410,1761166244465,-151.0,0.0004499,120]
[392109412,1761166244474,-356.994515,0.0004499,120]
[392109414,1761166244484,-356.994515,0.0004499,120]
[392109416,1761166244493,-151.0,0.0004499,120]
[392109418,1761166244502,-151.760165,0.0004499,120]
[392109420,1761166244511,-151.0,0.0004499,120]
[392109422,1761166244520,-151.0,0.0004499,120]
[392109424,1761166244529,-151.0,0.0004499,120]
[392109426,1761166244538,-66352.0686864,0.0004499,3]
[392109428,1761166244547,-151.0,0.0004499,120]
[392109430,1761166244556,-151.0,0.0004499,120]
[392109432,1761166244565,-151.0,0.0004499,120]
[392109434,1761166244574,-151.0,0.0004499,120]
[392109436,1761166244584,-151.0,0.0004499,14]
[392109438,1761166244595,-181.309918,0.0004499,120]
[392109440,1761166244604,-151.0,0.0004499,120]
[392109442,1761166244613,-151.0,0.0004499,120]
[392109444,1761166244622,-181.309918,0.0004499,120]
[392109446,1761166244632,-181.309918,0.0004499,120]
[392109448,1761166244641,-181.309918,0.0004499,120]
[392109450,1761166244649,-151.0,0.0004499,120]
[392109452,1761166244658,-151.0,0.0004499,120]
[392109454,1761166244667,-151.0,0.0004499,120]
[392109456,1761166244677,-151.0,0.0004499,120]
[392109458,1761166244686,-151.0,0.0004499,90]
[392109460,1761166244695,-151.0,0.0004499,120]
[392109462,1761166244705,-171.911938,0.0004499,120]
[392109464,1761166244714,-448.91475957,0.0004499,7]
[392109466,1761166244723,-448.91475957,0.0004499,7]
[392109468,1761166244732,-151.0,0.0004499,120]
[392109470,1761166244741,-151.0,0.0004499,120]
[392109472,1761166244750,-151.0,0.0004499,120]
[392109474,1761166244759,-151.0,0.0004499,120]
[392109476,1761166244768,-176.58084,0.0004499,120]
[392109478,1761166244777,-151.0,0.0004499,120]
[392109480,1761166244786,-151.0,0.0004499,120]
[392109482,1761166244795,-151.0,0.0004499,120]
[392109484,1761166244805,-151.0,0.0004499,120]
[392109486,1761166244814,-151.0,0.0004499,120]
[392109488,1761166244823,-331.344824,0.0004499,120]
[392109490,1761166244832,-331.344824,0.0004499,120]
[392109492,1761166244843,-331.344824,0.0004499,120]
[392109493,1761166244854,-325.5862381,0.00044996,2]
[392109496,1761166244863,-39573.9618368,0.00044996,2]
[392109498,1761166244872,-1978.3225034,0.00044996,2]
[392109499,1761166244881,-500.0,0.00044998,120]
[392109501,1761166244892,-1393.08,0.00044998,120]
[392109503,1761166244901,-500.0,0.00044998,120]
[392109505,1761166244912,-500.0,0.00044998,120]
[392109507,1761166244924,-500.0,0.00044998,2]
[392109510,1761166244934,-500.0,0.00044998,120]
[392109512,1761166244944,-500.0,0.00044998,120]
[392109514,1761166244955,-6888.0,0.00044999,120]
[392109515,1761166244965,-6294.10887815,0.00044999,120]
[392109518,1761166244974,-184.783113,0.00044999,120]
[392109520,1761166244984,-151.0,0.00044999,120]
[392109522,1761166244994,-151.0,0.00044999,120]
[392109524,1761166245003,-151.0,0.00044999,120]
[392109526,1761166245012,-151.0,0.00044999,120]
[392109528,1761166245021,-151.0,0.00044999,120]
[392109530,1761166245030,-151.0,0.00044999,120]
[392109532,1761166245039,-151.0,0.00044999,120]
[392109533,1761166245049,-151.0,0.00044999,120]
[392109535,1761166245058,-151.0,0.00044999,120]
[392109537,1761166245067,-153.356093,0.00044999,120]
[392109539,1761166245076,-151.0,0.00044999,60]
[392109542,1761166245086,-151.0,0.00044999,30]
[392109544,1761166245095,-282.664597,0.00044999,5]
[392109546,1761166245104,-151.0,0.00044999,120]
[392109548,1761166245114,-151.0,0.00044999,120]
[392109550,1761166245124,-153.957964,0.00044999,30]
[392109551,1761166245133,-500.0,0.00044999,120]
[392109553,1761166245143,-500.0,0.00044999,120]
[392109555,1761166245152,-500.0,0.00044999,120]
[392109556,1761166245161,-500.0,0.00044999,120]
[392109557,1761166245170,-500.0,0.00044999,120]
[392109558,1761166245180,-500.0,0.00044999,120]
[392109559,1761166245190,-500.0,0.00044999,120]
[392109561,1761166245199,-500.0,0.00044999,120]
[392109563,1761166245209,-500.0,0.00044999,120]
[392109565,1761166245219,-500.0,0.00044999,120]
[392109567,1761166245228,-500.0,0.00044999,120]
[392109569,1761166245237,-500.0,0.00044999,120]
[392109571,1761166245247,-500.0,0.00044999,120]
[392109573,1761166245256,-593.74760788,0.00044999,120]
[392109575,1761166245266,-1393.08,0.00044999,120]
[392109577,1761166245276,-1393.08,0.00044999,120]
[392109579,1761166245285,-1393.08,0.00044999,120]
[392109581,1761166245295,-1393.08,0.00044999,120]
[392109583,1761166245305,-1393.08,0.00044999,120]
[392109585,1761166245314,-1393.08,0.00044999,120]
[392109587,1761166245323,-1393.08,0.00044999,120]
[392109589,1761166245333,-1393.08,0.00044999,120]
[392109591,1761166245342,-1393.08,0.00044999,120]
[392109593,1761166245351,-1393.08,0.00044999,120]
[392109596,1761166245361,-1393.08,0.00044999,120]
[392109598,1761166245372,-1393.08,0.00044999,120]
[392109600,1761166245381,-1393.08,0.00044999,120]
[392109602,1761166245390,-1393.08,0.00044999,120]
[392109604,1761166245400,-1393.08,0.00044999,120]
[392109606,1761166245410,-1393.08,0.00044999,120]
[392109609,1761166245421,-1393.08,0.00044999,120]
[392109610,1761166245430,-1393.08,0.00044999,120]
[392109612,1761166245439,-1393.08,0.00044999,120]
[392109614,1761166245448,-1393.12057848,0.00044999,120]
[392109616,1761166245458,-151.0,0.00044999,120]
[392109619,1761166245467,-151.0,0.00044999,120]
[392109621,1761166245477,-151.0,0.00044999,120]
[392109622,1761166245486,-151.0,0.00044999,120]
[392109625,1761166245496,-151.0,0.00044999,15]
[392109627,1761166245505,-151.0,0.00044999,120]
[392109629,1761166245515,-151.0,0.00044999,15]
[392109631,1761166245524,-500.01,0.00044999,120]
[392109633,1761166245533,-229.0586,0.00044999,120]
[392109635,1761166245543,-500.0,0.00044999,120]
[392109637,1761166245552,-500.0,0.00044999,120]
[392109639,1761166245562,-500.0,0.00044999,120]
[392109641,1761166245571,-500.0,0.00044999,120]
[392109643,1761166245580,-500.0,0.00044999,120]
[392109645,1761166245590,-500.0,0.00044999,120]
[392109647,1761166245599,-500.0,0.00044999,120]
[392109649,1761166245609,-151.0,0.00044999,120]
[392109651,1761166245620,-500.0,0.00044999,120]
[392109653,1761166245630,-500.0,0.00044999,120]
[392109655,1761166245639,-500.0,0.00044999,120]
[392109657,1761166245650,-500.0,0.00044999,120]
[392109659,1761166245660,-241.16,0.00044999,120]
[392109661,1761166245670,-262.177728,0.00044999,120]
[392109663,1761166245680,-151.0,0.00044999,120]
[392109665,1761166245689,-151.0,0.00044999,120]
[392109667,1761166245700,-500.0,0.00044999,2]
[392109669,1761166245709,-151.0,0.00044999,120]
[392109671,1761166245719,-151.0,0.00044999,120]
[392109674,1761166245730,-151.0,0.00044999,120]
[392109676,1761166245740,-151.0,0.00044999,120]
[392109678,1761166245750,-151.0,0.00044999,120]
[392109680,1761166245759,-151.0,0.00044999,120]
[392109682,1761166245768,-151.0,0.00044999,120]
[392109684,1761166245778,-151.0,0.00044999,120]
[392109686,1761166245788,-151.0,0.00044999,120]
[392109688,1761166245798,-151.0,0.00044999,120]
[392109690,1761166245808,-151.0,0.00044999,120]
[392109692,1761166245817,-593.14204,0.00044999,30]
[392109694,1761166245827,-151.0,0.00044999,120]
[392109696,1761166245836,-593.14204,0.00044999,30]
[392109698,1761166245851,-151.0,0.00044999,120]
[392109700,1761166245861,-593.14204,0.00044999,30]
[392109702,1761166245871,-593.14204,0.00044999,30]
[392109704,1761166245880,-151.0,0.00044999,120]
[392109706,1761166245891,-151.0,0.00044999,120]
[392109708,1761166245902,-151.0,0.00044999,120]
[392109710,1761166245912,-151.0,0.00044999,120]
[392109712,1761166245923,-151.0,0.00044999,120]
[392109714,1761166245932,-151.0,0.00044999,120]
[392109716,1761166245942,-282.005148,0.00044999,120]
[392109719,1761166245952,-173.874048,0.00044999,14]
[392109720,1761166245963,-181.309918,0.00044999,120]
[392109723,1761166245973,-151.0,0.00044999,120]
[392109725,1761166245982,-162.72832,0.00044999,120]
[392109726,1761166245991,-181.309918,0.00044999,120]
[392109728,1761166246001,-181.309918,0.00044999,120]
[392109731,1761166246012,-181.309918,0.00044999,120]
[392109733,1761166246021,-151.0,0.00044999,120]
[392109735,1761166246031,-151.0,0.00044999,120]
[392109737,1761166246041,-151.0,0.00044999,120]
[392109739,1761166246051,-500.0,0.00044999,120]
[392109741,1761166246061,-500.0,0.00044999,120]
[392109742,1761166246070,-500.0,0.00044999,120]
[392109745,1761166246081,-500.0,0.00044999,120]
[392109747,1761166246091,-500.0,0.00044999,120]
[392109749,1761166246101,-500.0,0.00044999,120]
[392109751,1761166246111,-511.3404377,0.00044999,120]
[392109753,1761166246121,-151.0,0.00044999,90]
[392109755,1761166246130,-151.0,0.00044999,120]
[392109757,1761166246139,-228.133536,0.00044999,120]
[392109759,1761166246149,-151.0,0.00044999,120]
[392109761,1761166246158,-151.0,0.00044999,120]
[392109763,1761166246168,-151.0,0.00044999,120]
[392109765,1761166246177,-151.0,0.00044999,120]
[392109767,1761166246186,-151.0,0.00044999,120]
[392109769,1761166246195,-151.0,0.00044999,120]
[392109771,1761166246205,-151.0,0.00044999,120]
[392109773,1761166246215,-331.344824,0.00044999,120]
[392109775,1761166246223,-500.0,0.00044999,120]
[392109777,1761166246233,-500.0,0.00044999,120]
[392109779,1761166246242,-500.0,0.00044999,120]
[392109781,1761166246251,-500.0,0.00044999,120]
[392109783,1761166246260,-331.344824,0.00044999,120]
[392109784,1761166246270,-581.44128354,0.00044999,120]
[392109787,1761166246279,-331.344824,0.00044999,120]
[392109789,1761166246289,-73074.25226639,0.00045,18]
[392109791,1761166246298,-752168.54724833,0.00045,120]
[392109793,1761166246308,-674816.6498507,0.00045,120]
[392109805,1761166246429,-150884.97191395,0.00045,120]
[392109808,1761166246445,-2599.74199905,0.00045,120]
[392109823,1761166246585,-151.0,0.00044947,120]
[392109825,1761166246595,-485.428792,0.00044947,120]
[392109827,1761166246604,-415.25356,0.00044947,120]
[392109829,1761166246613,-183.24688,0.00044947,120]
[392109831,1761166246623,-331.344824,0.00044979,120]
[392109833,1761166246632,-151.0,0.00044979,120]
[392109835,1761166246641,-485.428792,0.00044979,120]
[392109837,1761166246651,-415.25356,0.00044979,120]
[392109839,1761166246660,-183.24688,0.00044979,120]
[392109841,1761166246670,-485.428792,0.0004499,120]
[392109843,1761166246679,-331.344824,0.0004499,120]
[392109845,1761166246689,-485.428792,0.0004499,120]
[392109847,1761166246698,-415.25356,0.0004499,120]
[392109849,1761166246707,-183.24688,0.0004499,120]
[392109851,1761166246717,-485.428792,0.00044999,120]
[392109853,1761166246727,-331.344824,0.00044999,120]
[392109855,1761166246738,-485.428792,0.00044999,120]
[392109857,1761166246748,-415.25356,0.00044999,120]
[392109859,1761166246758,-44320.26459537,0.00045,120]
[392109863,1761166246782,-485.428792,0.00044947,120]
[392109864,1761166246791,-183.24688,0.00044999,120]
[392109865,1761166246800,-461.64254339,0.00045,120]
[392109866,1761166246811,-1593.89564897,0.00045,120]
[392109867,1761166246822,-1371.29929718,0.00045,120]
[392109868,1761166246833,-540.75796832,0.00045,120]
[392109899,1761166247174,-415.25356,0.00044947,120]
[392109901,1761166247183,-183.24688,0.00044947,120]
[392109903,1761166247194,-485.428792,0.00044947,120]
[392109905,1761166247203,-183.24688,0.00044947,120]
[392109907,1761166247213,-415.25356,0.00044947,120]
[392109909,1761166247223,-485.428792,0.00044979,120]
[392109911,1761166247232,-415.25356,0.00044979,120]
[392109913,1761166247241,-183.24688,0.00044979,120]
[392109915,1761166247251,-485.428792,0.00044979,120]
[392109917,1761166247261,-183.24688,0.00044979,120]
[392109919,1761166247270,-415.25356,0.00044979,120]
[392109921,1761166247280,-485.428792,0.0004499,120]
[392109923,1761166247290,-173.31605686,0.0004499,2]
[392109925,1761166247299,-52.03692649,0.0004499,120]
[392109928,1761166247315,-363.21663351,0.0004499,120]
[392109930,1761166247325,-183.24688,0.0004499,120]
[392109932,1761166247334,-485.428792,0.0004499,120]
[392109934,1761166247344,-183.24688,0.0004499,120]
[392109936,1761166247353,-415.25356,0.0004499,120]
[392109938,1761166247363,-485.428792,0.00044999,120]
[392109940,1761166247372,-415.25356,0.00044999,120]
[392109942,1761166247382,-183.24688,0.00044999,120]
[392109944,1761166247392,-485.428792,0.00044999,120]
[392109946,1761166247401,-691.10622249,0.00045,120]
[392109949,1761166247424,-183.24688,0.00044999,120]
[392109951,1761166247433,-8946.85971874,0.00045,120]
[392109954,1761166247445,-739.44309208,0.00045,120]
[392109956,1761166247460,-415.25356,0.00044999,120]
[392109958,1761166247469,-2796.76579797,0.00045,120]
[392110121,1761166249143,151.0,0.00036092,2]
[392110233,1761166261119,500.0,0.00025271,2]
[392110234,1761166275677,433.52291745,0.00033341,2]
[392110235,1761166286565,151.0,0.00034709,2]
[392110236,1761166292487,709.97,0.00037808,60]
[392110237,1761166292745,709.97,0.00037839,80]
[392110238,1761166293057,709.97,0.00037869,100]
[392110239,1761166293339,709.97,0.000379,120]
[392110240,1761166302900,151.0,0.00034731,2]
[392110241,1761166320326,151.0,0.00034752,2]